[Event "Late-Titled-Tuesday-Blitz-March-05-2024"]
[Site "Chess.com"]
[Date "2024.03.05"]
[Round "2"]
[White "PNEPaul"]
[Black "semchik73"]
[Result "0-1"]
[WhiteElo "1931"]
[BlackElo "2421"]
[TimeControl "180+1"]
[EndTime "14:17:49 PST"]
[Termination "semchik73 won on time"]

1. e4 {[%clk 0:03:00.9]} 1... Nf6 {[%clk 0:03:00.1]} 2. Bc4 {[%clk 0:02:59.8]}
2... Nxe4 {[%clk 0:02:59.6]} 3. Bxf7+ {[%clk 0:02:59.5]} 3... Kxf7 {[%clk
0:03:00.5]} 4. Qh5+ {[%clk 0:02:59.1]} 4... g6 {[%clk 0:03:00.9]} 5. Qd5+ {[%clk
0:02:58.8]} 5... e6 {[%clk 0:03:01.1]} 6. Qxe4 {[%clk 0:02:58.9]} 6... Bg7
{[%clk 0:03:00.7]} 7. Qe2 {[%clk 0:02:58.8]} 7... Rf8 {[%clk 0:02:58.3]} 8. Nf3
{[%clk 0:02:58.6]} 8... Nc6 {[%clk 0:02:58]} 9. O-O {[%clk 0:02:53.3]} 9... Kg8
{[%clk 0:02:57.8]} 10. d3 {[%clk 0:02:52.7]} 10... d6 {[%clk 0:02:50.3]} 11. Nc3
{[%clk 0:02:52.3]} 11... e5 {[%clk 0:02:48.4]} 12. h3 {[%clk 0:02:51.4]} 12...
Qf6 {[%clk 0:02:41.1]} 13. Nd5 {[%clk 0:02:43.8]} 13... Qf7 {[%clk 0:02:40.3]}
14. c4 {[%clk 0:02:41]} 14... h6 {[%clk 0:02:33]} 15. Be3 {[%clk 0:02:35.9]}
15... Bxh3 {[%clk 0:02:31.4]} 16. gxh3 {[%clk 0:02:28.3]} 16... Qxf3 {[%clk
0:02:31.3]} 17. Qxf3 {[%clk 0:02:27.4]} 17... Rxf3 {[%clk 0:02:32.2]} 18. Nxc7
{[%clk 0:02:26]} 18... Rc8 {[%clk 0:02:30.8]} 19. Kg2 {[%clk 0:02:14.7]} 19...
Rxe3 {[%clk 0:02:28.6]} 20. fxe3 {[%clk 0:02:14.1]} 20... Rxc7 {[%clk
0:02:28.8]} 21. Rf2 {[%clk 0:02:08.9]} 21... Nb4 {[%clk 0:02:28.7]} 22. Rd2
{[%clk 0:02:03.9]} 22... e4 {[%clk 0:02:25.9]} 23. dxe4 {[%clk 0:02:00.2]} 23...
Rxc4 {[%clk 0:02:26.2]} 24. Rxd6 {[%clk 0:01:58.5]} 24... Rxe4 {[%clk
0:02:24.5]} 25. Rd8+ {[%clk 0:01:56.8]} 25... Kh7 {[%clk 0:02:23.4]} 26. Rd7
{[%clk 0:01:51.7]} 26... Rxe3 {[%clk 0:02:19.6]} 27. Rxb7 {[%clk 0:01:50.1]}
27... Nd3 {[%clk 0:02:15.6]} 28. Rxa7 {[%clk 0:01:41.2]} 28... Re2+ {[%clk
0:02:14.3]} 29. Kf3 {[%clk 0:01:40.9]} 29... Rxb2 {[%clk 0:02:11.9]} 30. Ke4
{[%clk 0:01:35.6]} 30... Nf2+ {[%clk 0:02:04.2]} 31. Kd5 {[%clk 0:01:32.7]}
31... Nxh3 {[%clk 0:01:58]} 32. Rf1 {[%clk 0:01:26]} 32... Ng5 {[%clk
0:01:53.9]} 33. a4 {[%clk 0:01:22.9]} 33... Rd2+ {[%clk 0:01:53.7]} 34. Kc4
{[%clk 0:01:19.5]} 34... Rd4+ {[%clk 0:01:48.4]} 35. Kb5 {[%clk 0:01:14.5]}
35... h5 {[%clk 0:01:42.8]} 36. a5 {[%clk 0:01:11.2]} 36... Kh6 {[%clk
0:01:42.7]} 37. a6 {[%clk 0:01:09.7]} 37... h4 {[%clk 0:01:37.1]} 38. Rc7 {[%clk
0:01:02.8]} 38... Rd5+ {[%clk 0:01:35.6]} 39. Kc6 {[%clk 0:00:56.8]} 39... Ra5
{[%clk 0:01:31.1]} 40. Kb7 {[%clk 0:00:51.1]} 40... Bd4 {[%clk 0:01:23]} 41. Rc6
{[%clk 0:00:40.5]} 41... h3 {[%clk 0:01:19.3]} 42. Rh1 {[%clk 0:00:27.1]} 42...
Ra2 {[%clk 0:01:10.9]} 43. Rd6 {[%clk 0:00:22.9]} 43... Be3 {[%clk 0:00:53.8]}
44. Rd3 {[%clk 0:00:17.7]} 44... Bf2 {[%clk 0:00:49.9]} 45. Rdxh3+ {[%clk
0:00:11]} 45... Nxh3 {[%clk 0:00:49.8]} 46. Rxh3+ {[%clk 0:00:09.2]} 46... Kg5
{[%clk 0:00:50]} 47. Rf3 {[%clk 0:00:06.3]} 47... Bd4 {[%clk 0:00:47.2]} 48. Rd3
{[%clk 0:00:05.8]} 48... Bf2 {[%clk 0:00:45.4]} 49. Rf3 {[%clk 0:00:05.5]} 49...
Kg4 {[%clk 0:00:45.4]} 50. Rb3 {[%clk 0:00:03]} 50... g5 {[%clk 0:00:44.3]} 0-1

[Event "Late-Titled-Tuesday-Blitz-March-05-2024"]
[Site "Chess.com"]
[Date "2024.03.05"]
[Round "2"]
[White "ChessBrainiacOnTwitch"]
[Black "PenguinPacks"]
[Result "1-0"]
[WhiteElo "2789"]
[BlackElo "2405"]
[TimeControl "180+1"]
[EndTime "14:17:54 PST"]
[Termination "ChessBrainiacOnTwitch won on time"]

1. Nf3 {[%clk 0:03:00.9]} 1... Nf6 {[%clk 0:01:58.2]} 2. g3 {[%clk 0:03:01.8]}
2... g6 {[%clk 0:01:58.1]} 3. Bg2 {[%clk 0:03:00.6]} 3... Bg7 {[%clk 0:01:58.5]}
4. O-O {[%clk 0:03:01.5]} 4... O-O {[%clk 0:01:58.7]} 5. d3 {[%clk 0:03:01.5]}
5... d5 {[%clk 0:01:59]} 6. Nbd2 {[%clk 0:03:02.4]} 6... Nc6 {[%clk 0:01:57.2]}
7. e4 {[%clk 0:03:02.6]} 7... e5 {[%clk 0:01:57.9]} 8. Re1 {[%clk 0:03:02]} 8...
Re8 {[%clk 0:01:58.5]} 9. c3 {[%clk 0:03:01.9]} 9... a5 {[%clk 0:01:58.8]} 10.
a4 {[%clk 0:03:01.1]} 10... d4 {[%clk 0:01:56]} 11. Nc4 {[%clk 0:03:00.6]} 11...
Nd7 {[%clk 0:01:55.9]} 12. h4 {[%clk 0:03:00.1]} 12... Nc5 {[%clk 0:01:54.6]}
13. cxd4 {[%clk 0:02:49.6]} 13... Nxd4 {[%clk 0:01:53.6]} 14. Nxd4 {[%clk
0:02:40.3]} 14... exd4 {[%clk 0:01:53.8]} 15. b3 {[%clk 0:02:33]} 15... Be6
{[%clk 0:01:49.5]} 16. Bg5 {[%clk 0:02:31.5]} 16... Qd7 {[%clk 0:01:47.5]} 17.
Rc1 {[%clk 0:02:26.6]} 17... b6 {[%clk 0:01:00.9]} 18. e5 {[%clk 0:02:24.3]}
18... Rab8 {[%clk 0:00:58.5]} 19. h5 {[%clk 0:02:20.9]} 19... Bg4 {[%clk
0:00:57.7]} 20. Bf3 {[%clk 0:02:17.4]} 20... gxh5 {[%clk 0:00:52.8]} 21. Rb1
{[%clk 0:01:54.3]} 21... Qf5 {[%clk 0:00:46.9]} 22. Bf4 {[%clk 0:01:47.8]} 22...
Bxf3 {[%clk 0:00:42.5]} 23. Qxf3 {[%clk 0:01:48.7]} 23... Nxd3 {[%clk
0:00:41.1]} 24. Re4 {[%clk 0:01:43.1]} 24... Nxe5 {[%clk 0:00:31.3]} 25. Nxe5
{[%clk 0:01:41.7]} 25... Rxe5 {[%clk 0:00:27.5]} 26. Rbe1 {[%clk 0:01:37.8]}
26... Rxe4 {[%clk 0:00:19.9]} 27. Rxe4 {[%clk 0:01:38.7]} 27... Rd8 {[%clk
0:00:18]} 28. Qe2 {[%clk 0:01:36.8]} 28... Qd7 {[%clk 0:00:17.7]} 29. Re7 {[%clk
0:01:32.7]} 29... Qd5 {[%clk 0:00:13.1]} 30. Re8+ {[%clk 0:01:31.8]} 30... Rxe8
{[%clk 0:00:12.6]} 31. Qxe8+ {[%clk 0:01:32.7]} 31... Bf8 {[%clk 0:00:13]} 32.
Bxc7 {[%clk 0:01:04.8]} 32... d3 {[%clk 0:00:10.7]} 33. Qe1 {[%clk 0:01:01.4]}
33... d2 {[%clk 0:00:09.3]} 34. Qd1 {[%clk 0:01:01.8]} 34... Bb4 {[%clk
0:00:09.4]} 35. Bf4 {[%clk 0:00:58.7]} 35... Qf5 {[%clk 0:00:08.3]} 36. Kf1
{[%clk 0:00:53.2]} 36... Qg4 {[%clk 0:00:07.5]} 37. Qxg4+ {[%clk 0:00:51.9]}
37... hxg4 {[%clk 0:00:08.4]} 38. Ke2 {[%clk 0:00:52.8]} 38... f5 {[%clk
0:00:07.9]} 39. Be3 {[%clk 0:00:52]} 39... Kf7 {[%clk 0:00:08.5]} 40. Bxb6
{[%clk 0:00:52.2]} 40... Ke6 {[%clk 0:00:08.8]} 41. Be3 {[%clk 0:00:52.7]} 41...
Kd5 {[%clk 0:00:09.5]} 42. Bxd2 {[%clk 0:00:52.6]} 42... Bxd2 {[%clk 0:00:08]}
43. Kxd2 {[%clk 0:00:53.5]} 43... Kc5 {[%clk 0:00:07.8]} 44. Kc3 {[%clk
0:00:53]} 44... h5 {[%clk 0:00:07.8]} 45. Kd3 {[%clk 0:00:42.1]} 45... f4 {[%clk
0:00:06.2]} 46. Ke4 {[%clk 0:00:27.2]} 1-0

[Event "Late-Titled-Tuesday-Blitz-March-05-2024"]
[Site "Chess.com"]
[Date "2024.03.05"]
[Round "2"]
[White "GaiozNigalidze"]
[Black "AccioChess"]
[Result "1-0"]
[WhiteElo "2682"]
[BlackElo "2389"]
[TimeControl "180+1"]
[EndTime "14:17:56 PST"]
[Termination "GaiozNigalidze won on time"]

1. d4 {[%clk 0:02:58.2]} 1... Nf6 {[%clk 0:02:54.9]} 2. Qd3 {[%clk 0:02:57.9]}
2... d5 {[%clk 0:02:52.1]} 3. Qg3 {[%clk 0:02:57.7]} 3... g6 {[%clk 0:02:50.2]}
4. Nc3 {[%clk 0:02:57.3]} 4... Bg7 {[%clk 0:02:47.9]} 5. e3 {[%clk 0:02:57.5]}
5... O-O {[%clk 0:02:47.3]} 6. Bd3 {[%clk 0:02:57.2]} 6... c5 {[%clk 0:02:43.7]}
7. dxc5 {[%clk 0:02:57]} 7... Nbd7 {[%clk 0:02:43.1]} 8. Nge2 {[%clk 0:02:55.9]}
8... Nxc5 {[%clk 0:02:42.6]} 9. O-O {[%clk 0:02:55.9]} 9... a6 {[%clk
0:02:30.6]} 10. Nd4 {[%clk 0:02:53.9]} 10... Ncd7 {[%clk 0:02:26.1]} 11. f4
{[%clk 0:02:52.3]} 11... Nc5 {[%clk 0:02:24.6]} 12. Bd2 {[%clk 0:02:51.8]} 12...
Qb6 {[%clk 0:02:17.6]} 13. Rab1 {[%clk 0:02:51.2]} 13... Bd7 {[%clk 0:02:15.4]}
14. b4 {[%clk 0:02:50.9]} 14... Nxd3 {[%clk 0:02:14]} 15. cxd3 {[%clk
0:02:50.8]} 15... Rac8 {[%clk 0:02:10.3]} 16. a4 {[%clk 0:02:50.1]} 16... Rc7
{[%clk 0:01:57.7]} 17. Rb3 {[%clk 0:02:42.5]} 17... Rfc8 {[%clk 0:01:56.5]} 18.
h3 {[%clk 0:02:41.4]} 18... Qd6 {[%clk 0:01:41.2]} 19. Qf2 {[%clk 0:02:34.9]}
19... e5 {[%clk 0:01:38.6]} 20. fxe5 {[%clk 0:02:34.6]} 20... Qxe5 {[%clk
0:01:39.5]} 21. b5 {[%clk 0:02:34.5]} 21... Be8 {[%clk 0:01:34]} 22. bxa6 {[%clk
0:02:22.7]} 22... bxa6 {[%clk 0:01:34.9]} 23. Nce2 {[%clk 0:02:21.6]} 23... Bxa4
{[%clk 0:01:28.1]} 24. Rb6 {[%clk 0:02:21.2]} 24... Be8 {[%clk 0:00:51.1]} 25.
Rxa6 {[%clk 0:02:20.1]} 25... Nd7 {[%clk 0:00:50.9]} 26. Nf4 {[%clk 0:02:00.8]}
26... Nc5 {[%clk 0:00:50]} 27. Ra3 {[%clk 0:02:00]} 27... Ne6 {[%clk 0:00:42.6]}
28. Nfxe6 {[%clk 0:01:46]} 28... fxe6 {[%clk 0:00:43.5]} 29. Ra6 {[%clk
0:01:46]} 29... Rf7 {[%clk 0:00:42.4]} 30. Qe1 {[%clk 0:01:35.9]} 30... Rxf1+
{[%clk 0:00:40.6]} 31. Qxf1 {[%clk 0:01:36]} 31... Bd7 {[%clk 0:00:37.3]} 32.
Ra7 {[%clk 0:01:34.7]} 32... Rf8 {[%clk 0:00:37.2]} 33. Qe2 {[%clk 0:01:33.4]}
33... Bc8 {[%clk 0:00:33.8]} 34. Bc3 {[%clk 0:01:26]} 34... Rf7 {[%clk 0:00:20]}
35. Ra8 {[%clk 0:01:24.8]} 35... Qc7 {[%clk 0:00:18.8]} 36. Qb2 {[%clk
0:01:07.2]} 36... Rf8 {[%clk 0:00:12.5]} 37. Bb4 {[%clk 0:00:51.2]} 37... Rd8
{[%clk 0:00:10]} 38. Qa1 {[%clk 0:00:46.2]} 38... Qb7 {[%clk 0:00:08.7]} 39. Ra7
{[%clk 0:00:36.1]} 39... Qxb4 {[%clk 0:00:02.2]} 40. Rxg7+ {[%clk 0:00:34.8]}
40... Kh8 {[%clk 0:00:02.4]} 41. Nc6 {[%clk 0:00:21.7]} 1-0

[Event "Late-Titled-Tuesday-Blitz-March-05-2024"]
[Site "Chess.com"]
[Date "2024.03.05"]
[Round "2"]
[White "DonJuan_34"]
[Black "ansko1999"]
[Result "1-0"]
[WhiteElo "2464"]
[BlackElo "2690"]
[TimeControl "180+1"]
[EndTime "14:17:58 PST"]
[Termination "DonJuan_34 won by checkmate"]

1. d4 {[%clk 0:03:00.9]} 1... Nf6 {[%clk 0:02:58.1]} 2. c4 {[%clk 0:03:01]} 2...
b6 {[%clk 0:02:58.4]} 3. Nc3 {[%clk 0:03:01.4]} 3... Bb7 {[%clk 0:02:58.7]} 4.
d5 {[%clk 0:03:00.9]} 4... e6 {[%clk 0:02:54.1]} 5. e4 {[%clk 0:03:00.9]} 5...
Bb4 {[%clk 0:02:50.2]} 6. Bd3 {[%clk 0:03:00.5]} 6... exd5 {[%clk 0:02:44.9]} 7.
exd5 {[%clk 0:02:57.9]} 7... O-O {[%clk 0:02:44.5]} 8. Ne2 {[%clk 0:02:57.5]}
8... c6 {[%clk 0:02:43.6]} 9. dxc6 {[%clk 0:02:51.9]} 9... Nxc6 {[%clk 0:02:35]}
10. O-O {[%clk 0:02:43.1]} 10... Ne5 {[%clk 0:02:34.5]} 11. a3 {[%clk
0:02:39.4]} 11... Be7 {[%clk 0:02:32.2]} 12. Nd5 {[%clk 0:02:21.8]} 12... Nxd5
{[%clk 0:02:22.1]} 13. cxd5 {[%clk 0:02:21.1]} 13... Nxd3 {[%clk 0:02:17.3]} 14.
Qxd3 {[%clk 0:02:20.7]} 14... Bf6 {[%clk 0:02:09.3]} 15. Nc3 {[%clk 0:02:12.8]}
15... Re8 {[%clk 0:02:08.1]} 16. Be3 {[%clk 0:02:12.3]} 16... Qe7 {[%clk
0:02:01.3]} 17. Bd4 {[%clk 0:02:06.2]} 17... Bxd4 {[%clk 0:01:47.7]} 18. Qxd4
{[%clk 0:02:06]} 18... Qe5 {[%clk 0:01:47.7]} 19. Rfd1 {[%clk 0:02:01.5]} 19...
d6 {[%clk 0:01:44.4]} 20. Nb5 {[%clk 0:01:49.7]} 20... Qxd4 {[%clk 0:01:20.3]}
21. Rxd4 {[%clk 0:01:44.3]} 21... Re5 {[%clk 0:01:16.6]} 22. Rad1 {[%clk
0:01:40]} 22... Rae8 {[%clk 0:01:03.9]} 23. h4 {[%clk 0:01:38.5]} 23... Re1+
{[%clk 0:00:58.5]} 24. Rxe1 {[%clk 0:01:37.8]} 24... Rxe1+ {[%clk 0:00:59.4]}
25. Kh2 {[%clk 0:01:37.9]} 25... Re5 {[%clk 0:00:44.6]} 26. Nxd6 {[%clk
0:01:32.8]} 26... Bxd5 {[%clk 0:00:20.9]} 27. Nc4 {[%clk 0:01:32.1]} 27... Rh5
{[%clk 0:00:17.2]} 28. g4 {[%clk 0:01:27.7]} 28... Rxh4+ {[%clk 0:00:13]} 29.
Kg3 {[%clk 0:01:27.8]} 29... Rh1 {[%clk 0:00:05.7]} 30. Rxd5 {[%clk 0:01:27.1]}
30... h6 {[%clk 0:00:05.8]} 31. Rd8+ {[%clk 0:01:24]} 31... Kh7 {[%clk
0:00:05.9]} 32. Rd7 {[%clk 0:01:24.3]} 32... Kg6 {[%clk 0:00:05.7]} 33. Ne5+
{[%clk 0:01:22.2]} 33... Kf6 {[%clk 0:00:05.7]} 34. Nxf7 {[%clk 0:01:21.7]}
34... a5 {[%clk 0:00:05.5]} 35. Nd6 {[%clk 0:01:18.5]} 35... Ke6 {[%clk
0:00:05.4]} 36. Rd8 {[%clk 0:01:14.6]} 36... Ke7 {[%clk 0:00:05.4]} 37. Nb7
{[%clk 0:01:14.7]} 37... Rc1 {[%clk 0:00:04.8]} 38. Rd6 {[%clk 0:01:11.2]} 38...
b5 {[%clk 0:00:03.3]} 39. Rb6 {[%clk 0:01:10.4]} 39... b4 {[%clk 0:00:01.7]} 40.
axb4 {[%clk 0:01:10.4]} 40... a4 {[%clk 0:00:02.6]} 41. Nc5 {[%clk 0:01:09]}
41... a3 {[%clk 0:00:01.7]} 42. bxa3 {[%clk 0:01:08.4]} 42... Rc3+ {[%clk
0:00:02.4]} 43. f3 {[%clk 0:01:08.3]} 43... Rxa3 {[%clk 0:00:03.3]} 44. Ne4
{[%clk 0:01:08.2]} 44... Rb3 {[%clk 0:00:03.1]} 45. Rb7+ {[%clk 0:01:07.9]}
45... Kf8 {[%clk 0:00:02.9]} 46. Nc5 {[%clk 0:01:06.9]} 46... Kg8 {[%clk
0:00:02.9]} 47. Nxb3 {[%clk 0:01:06.6]} 47... h5 {[%clk 0:00:02.3]} 48. gxh5
{[%clk 0:01:06.4]} 48... Kh8 {[%clk 0:00:02.5]} 49. b5 {[%clk 0:01:05.9]} 49...
Kh7 {[%clk 0:00:03]} 50. Rc7 {[%clk 0:01:05.8]} 50... Kh6 {[%clk 0:00:03.6]} 51.
b6 {[%clk 0:01:02.7]} 51... Kg5 {[%clk 0:00:03.2]} 52. Rc5+ {[%clk 0:01:01.9]}
52... Kh6 {[%clk 0:00:03.6]} 53. b7 {[%clk 0:01:01.2]} 53... g5 {[%clk
0:00:04.2]} 54. hxg6 {[%clk 0:01:00.7]} 54... Kg7 {[%clk 0:00:04.3]} 55. b8=Q
{[%clk 0:01:00.1]} 55... Kh6 {[%clk 0:00:04.8]} 56. Qh8+ {[%clk 0:00:59.3]}
56... Kxg6 {[%clk 0:00:05.4]} 57. Qh5+ {[%clk 0:00:59.2]} 57... Kf6 {[%clk
0:00:05.8]} 58. Rc6+ {[%clk 0:00:59.3]} 58... Ke7 {[%clk 0:00:06.1]} 59. Qh7+
{[%clk 0:00:59.4]} 59... Kd8 {[%clk 0:00:06.3]} 60. Rg6 {[%clk 0:00:58.5]} 60...
Kc8 {[%clk 0:00:07.2]} 61. Rg8# {[%clk 0:00:58.7]} 1-0

[Event "Late-Titled-Tuesday-Blitz-March-05-2024"]
[Site "Chess.com"]
[Date "2024.03.05"]
[Round "2"]
[White "NovakRatko"]
[Black "PepeCuenca"]
[Result "0-1"]
[WhiteElo "2397"]
[BlackElo "2712"]
[TimeControl "180+1"]
[EndTime "14:17:58 PST"]
[Termination "PepeCuenca won on time"]

1. d4 {[%clk 0:01:44.6]} 1... Nf6 {[%clk 0:02:59.1]} 2. c4 {[%clk 0:01:44.6]}
2... g6 {[%clk 0:02:59.3]} 3. Nc3 {[%clk 0:01:44.7]} 3... Bg7 {[%clk 0:02:59.9]}
4. e4 {[%clk 0:01:44.9]} 4... d6 {[%clk 0:03:00.6]} 5. f3 {[%clk 0:01:45.6]}
5... O-O {[%clk 0:03:00.1]} 6. Be3 {[%clk 0:01:45.9]} 6... c5 {[%clk 0:03:00.7]}
7. dxc5 {[%clk 0:01:46.2]} 7... dxc5 {[%clk 0:03:01]} 8. Qxd8 {[%clk 0:01:47.1]}
8... Rxd8 {[%clk 0:03:01.6]} 9. Bxc5 {[%clk 0:01:47.8]} 9... Nc6 {[%clk
0:03:02.1]} 10. Nd5 {[%clk 0:01:48.4]} 10... Nd7 {[%clk 0:02:59]} 11. Nxe7+
{[%clk 0:01:44.5]} 11... Nxe7 {[%clk 0:02:58.4]} 12. Bxe7 {[%clk 0:01:45.4]}
12... Bxb2 {[%clk 0:02:56.1]} 13. Bxd8 {[%clk 0:01:43.1]} 13... Bc3+ {[%clk
0:02:55.9]} 14. Kf2 {[%clk 0:01:40.3]} 14... Bxa1 {[%clk 0:02:56.8]} 15. Bg5
{[%clk 0:01:40.4]} 15... Nc5 {[%clk 0:02:45.5]} 16. Be3 {[%clk 0:01:32.3]} 16...
b6 {[%clk 0:02:44.4]} 17. Be2 {[%clk 0:01:26.6]} 17... Bg7 {[%clk 0:02:38.6]}
18. Nh3 {[%clk 0:01:20.3]} 18... Bxh3 {[%clk 0:02:32.1]} 19. gxh3 {[%clk
0:01:18.3]} 19... Rd8 {[%clk 0:02:28.6]} 20. Rd1 {[%clk 0:01:14.9]} 20... Rxd1
{[%clk 0:02:28.1]} 21. Bxd1 {[%clk 0:01:14.3]} 21... Ne6 {[%clk 0:02:28.6]} 22.
a4 {[%clk 0:01:07.5]} 22... Bd4 {[%clk 0:02:25.8]} 23. f4 {[%clk 0:01:02.1]}
23... Kf8 {[%clk 0:02:12.2]} 24. Bg4 {[%clk 0:01:01.3]} 24... Bxe3+ {[%clk
0:02:11]} 25. Kxe3 {[%clk 0:01:00.7]} 25... Nc5 {[%clk 0:02:10.2]} 26. Bd1
{[%clk 0:01:00.2]} 26... Ke7 {[%clk 0:02:01]} 27. Kd4 {[%clk 0:00:59.8]} 27...
Ne6+ {[%clk 0:01:57.9]} 28. Ke3 {[%clk 0:00:58.4]} 28... Kd6 {[%clk 0:01:57.7]}
29. f5 {[%clk 0:00:53.4]} 29... Nc5 {[%clk 0:01:56.4]} 30. Kd4 {[%clk
0:00:52.9]} 30... f6 {[%clk 0:01:49.8]} 31. h4 {[%clk 0:00:50.7]} 31... gxf5
{[%clk 0:01:38.8]} 32. exf5 {[%clk 0:00:48.4]} 32... a5 {[%clk 0:01:37.8]} 33.
Bc2 {[%clk 0:00:36.5]} 33... Nd7 {[%clk 0:01:36.4]} 34. Bd1 {[%clk 0:00:32.4]}
34... Ne5 {[%clk 0:01:33.3]} 35. Be2 {[%clk 0:00:31.3]} 35... Nc6+ {[%clk
0:01:30.5]} 36. Ke4 {[%clk 0:00:24]} 36... Kc5 {[%clk 0:01:24.5]} 37. Kf4 {[%clk
0:00:16.4]} 37... Ne5 {[%clk 0:01:21.2]} 38. h3 {[%clk 0:00:16.2]} 38... Kd4
{[%clk 0:01:08.5]} 39. Bf1 {[%clk 0:00:10.9]} 39... Nxc4 {[%clk 0:01:04.6]} 40.
Bxc4 {[%clk 0:00:02.3]} 40... Kxc4 {[%clk 0:01:04.7]} 41. Kg4 {[%clk 0:00:03.2]}
41... b5 {[%clk 0:01:05]} 42. axb5 {[%clk 0:00:03.3]} 42... Kxb5 {[%clk
0:01:05.6]} 43. Kh5 {[%clk 0:00:04.2]} 43... a4 {[%clk 0:01:06]} 44. Kh6 {[%clk
0:00:05.1]} 44... a3 {[%clk 0:01:06.9]} 45. Kxh7 {[%clk 0:00:05.2]} 45... a2
{[%clk 0:01:07.8]} 46. Kg6 {[%clk 0:00:05.9]} 46... a1=Q {[%clk 0:01:08.7]} 47.
h5 {[%clk 0:00:06.2]} 47... Qg1+ {[%clk 0:00:55.8]} 48. Kxf6 {[%clk 0:00:05.6]}
48... Qg8 {[%clk 0:00:54.4]} 49. Ke7 {[%clk 0:00:02.4]} 49... Qg7+ {[%clk
0:00:48.7]} 50. Ke6 {[%clk 0:00:02.3]} 50... Kc6 {[%clk 0:00:45.9]} 51. f6
{[%clk 0:00:02.4]} 51... Qf8 {[%clk 0:00:45.5]} 0-1

[Event "Late-Titled-Tuesday-Blitz-March-05-2024"]
[Site "Chess.com"]
[Date "2024.03.05"]
[Round "2"]
[White "NovakCabarkapa"]
[Black "jaskol95"]
[Result "1-0"]
[WhiteElo "2819"]
[BlackElo "2569"]
[TimeControl "180+1"]
[EndTime "14:18:00 PST"]
[Termination "NovakCabarkapa won by checkmate"]

1. b3 {[%clk 0:02:54.4]} 1... d5 {[%clk 0:02:59]} 2. Bb2 {[%clk 0:02:52.6]} 2...
Bg4 {[%clk 0:02:59.7]} 3. f3 {[%clk 0:02:50.5]} 3... Bh5 {[%clk 0:02:59.6]} 4.
Nh3 {[%clk 0:02:48.7]} 4... e6 {[%clk 0:02:58.4]} 5. e3 {[%clk 0:02:44]} 5...
Nf6 {[%clk 0:02:54.9]} 6. Nc3 {[%clk 0:02:41]} 6... c6 {[%clk 0:02:54.1]} 7. Nf4
{[%clk 0:02:40.5]} 7... Bg6 {[%clk 0:02:54.1]} 8. h4 {[%clk 0:02:41]} 8... Bd6
{[%clk 0:02:40.4]} 9. Nce2 {[%clk 0:02:33.8]} 9... e5 {[%clk 0:02:27.4]} 10. h5
{[%clk 0:02:34.2]} 10... exf4 {[%clk 0:02:25.7]} 11. hxg6 {[%clk 0:02:34.5]}
11... fxe3 {[%clk 0:02:23.5]} 12. gxf7+ {[%clk 0:02:31.2]} 12... Kxf7 {[%clk
0:02:23.5]} 13. dxe3 {[%clk 0:02:31.6]} 13... Nbd7 {[%clk 0:02:19.9]} 14. Qd2
{[%clk 0:02:30.9]} 14... Qe7 {[%clk 0:02:17]} 15. O-O-O {[%clk 0:02:28]} 15...
Ba3 {[%clk 0:02:14.1]} 16. Nd4 {[%clk 0:02:28.3]} 16... Bxb2+ {[%clk 0:02:14]}
17. Kxb2 {[%clk 0:02:29.2]} 17... a5 {[%clk 0:02:10.7]} 18. a4 {[%clk
0:02:05.4]} 18... Rhe8 {[%clk 0:02:10.2]} 19. Bd3 {[%clk 0:01:59.2]} 19... Qxe3
{[%clk 0:01:57.7]} 20. Qxe3 {[%clk 0:01:42.9]} 20... Rxe3 {[%clk 0:01:57.7]} 21.
Bxh7 {[%clk 0:01:43.3]} 21... g6 {[%clk 0:01:27.9]} 22. Rh6 {[%clk 0:01:06.5]}
22... Nf8 {[%clk 0:01:27.9]} 23. Bxg6+ {[%clk 0:01:07]} 23... Nxg6 {[%clk
0:01:27.2]} 24. Nf5 {[%clk 0:01:07.7]} 24... Re2 {[%clk 0:01:14]} 25. g4 {[%clk
0:01:07.1]} 25... Ne5 {[%clk 0:00:50.6]} 26. g5 {[%clk 0:01:01.9]} 26... Ng8
{[%clk 0:00:47]} 27. Nd6+ {[%clk 0:00:57]} 27... Ke7 {[%clk 0:00:42.4]} 28. Nf5+
{[%clk 0:00:57.3]} 28... Kd7 {[%clk 0:00:41]} 29. Rh7+ {[%clk 0:00:56.2]} 29...
Kc8 {[%clk 0:00:39.5]} 30. Rg7 {[%clk 0:00:50.4]} 30... Ra6 {[%clk 0:00:22.2]}
31. Rxg8+ {[%clk 0:00:50]} 31... Kc7 {[%clk 0:00:22.8]} 32. g6 {[%clk
0:00:44.5]} 32... Rg2 {[%clk 0:00:20.4]} 33. g7 {[%clk 0:00:44]} 33... Nc4+
{[%clk 0:00:06.1]} 34. bxc4 {[%clk 0:00:43]} 34... Rb6+ {[%clk 0:00:06.9]} 35.
Kc1 {[%clk 0:00:42.8]} 35... Rb4 {[%clk 0:00:06.2]} 36. Rf8 {[%clk 0:00:33.1]}
36... Rxc4 {[%clk 0:00:05.6]} 37. Ne3 {[%clk 0:00:31.3]} 37... Rxg7 {[%clk
0:00:03.7]} 38. Nxc4 {[%clk 0:00:31.6]} 38... dxc4 {[%clk 0:00:04.6]} 39. Rf5
{[%clk 0:00:29.2]} 39... Kb6 {[%clk 0:00:04.8]} 40. Kb2 {[%clk 0:00:26.9]} 40...
Rg2 {[%clk 0:00:04.2]} 41. Rd4 {[%clk 0:00:26.6]} 41... Rf2 {[%clk 0:00:03.6]}
42. Rxc4 {[%clk 0:00:26.4]} 42... Ka6 {[%clk 0:00:04.5]} 43. Rc3 {[%clk
0:00:24.8]} 43... Re2 {[%clk 0:00:04.5]} 44. Rb3 {[%clk 0:00:25.1]} 44... Re3
{[%clk 0:00:04.2]} 45. Rxe3 {[%clk 0:00:23.9]} 45... c5 {[%clk 0:00:04.9]} 46.
Rxc5 {[%clk 0:00:23.5]} 46... b6 {[%clk 0:00:05.6]} 47. Rc7 {[%clk 0:00:23.6]}
47... b5 {[%clk 0:00:05.8]} 48. Re6# {[%clk 0:00:24]} 1-0